{"text_format":"3","workbook":"xlsx","n_sheets":3,"sheets":["Erläuterungen","Berechnung","Parameter"],"not_rendered":{"charts":1,"macros":1,"defined_names":8},"read":"whole","date_system":"1900"}

{"sheet":"Erläuterungen","index":0,"n_rows":142,"n_cols":9,"rows_kept":142,"merged":[[0,0,0,6],[6,0,6,6],[9,0,9,6],[11,0,11,6],[13,0,13,6],[15,0,15,6],[17,0,17,6],[19,0,19,3],[21,0,21,6],[23,0,23,6],[25,0,25,6],[27,0,27,2],[29,0,29,6],[32,0,32,6],[34,0,34,6],[36,0,36,6],[37,0,37,6],[39,0,39,6],[41,0,41,6],[43,0,43,6],[44,0,44,6],[45,0,45,6],[46,0,46,6],[47,0,47,6],[48,0,48,6],[49,0,49,6],[51,0,51,6],[53,0,53,6],[55,0,55,6],[57,0,57,6],[59,0,59,6],[61,0,61,6],[63,0,63,6],[65,0,65,6],[67,0,67,6],[71,0,71,6],[73,1,73,6],[74,1,74,6],[77,0,77,6],[79,0,79,6],[81,0,81,6],[83,0,83,6],[85,0,85,6],[87,0,87,6],[89,0,89,6],[91,0,91,6],[93,0,93,6],[95,0,95,6],[97,0,97,6],[99,0,99,6],[101,0,101,6],[103,0,103,6],[105,0,105,6],[107,0,107,6],[109,0,109,6],[111,0,111,6],[113,0,113,6],[115,0,115,6],[117,0,117,6],[119,0,119,6],[119,7,119,13],[119,14,119,20],[119,21,119,27],[119,28,119,34],[119,35,119,41],[119,42,119,48],[119,49,119,55],[119,56,119,62],[119,63,119,69],[119,70,119,76],[119,77,119,83],[119,84,119,90],[119,91,119,97],[119,98,119,104],[119,105,119,111],[119,112,119,118],[119,119,119,125],[119,126,119,132],[119,133,119,139],[119,140,119,146],[119,147,119,153],[119,154,119,160],[119,161,119,167],[119,168,119,174],[119,175,119,181],[119,182,119,188],[119,189,119,195],[119,196,119,202],[119,203,119,209],[119,210,119,216],[119,217,119,223],[119,224,119,230],[119,231,119,237],[119,238,119,244],[119,245,119,251],[119,252,119,255],[121,0,121,6],[123,0,123,6],[125,0,125,6],[127,0,127,6],[129,0,129,6],[131,0,131,6],[133,0,133,6],[135,0,135,6],[137,0,137,6],[139,0,139,6],[141,0,141,6]]}
["Berechnungshilfe zur Ermittlung der erforderlichen Vorversicherungszeiten im Bereich der Krankenversicherungspflicht von Beziehern einer Rente aus der gesetzlichen Rentenversicherung (DRV / sog. KVdR / Krankenversicherung der Rentner)"]
[]
["Stand:","2020-02-26"]
[]
["Vorwort:"]
[]
["Dieses Excel-Tool wurde zur überschlägigen Berechnung der erforderlichen Vorversicherungszeiten im Bereich der Pflichtversicherung als Rentner (sog. KVdR / § 5 Abs. 1 Nr. 11 SGB V) in der gesetzlichen Kranken- und Pflegeversicherung erstellt.  "]
[]
[]
["Die Berechnungshilfe soll als Arbeitserleichterung für die im SGB XII tätigen Sachbearbeiter/-innen verstanden werden. Sie wurde nach den aktuellen Rechtsvorschriften und dem GR des Spitzenverbandes vom 24.10.2019 erstellt. Evtl. Abweichungen gegenüber den Berechnungen der Krankenkassen müssten mit diesen konkret geklärt werden."]
[]
["Leider gibt es bislang offensichtlich in Deutschland auch kein einheitliches Programm der Krankenkassen zur Ermittlung der sog. KVdR. Dies füht in der Praxis dazu, dass fast jede Krankenkasse eigene Programme entwickelt hat. "]
[]
["Der Autor hat zuvor Probeberechnungen mit einigen Rechnern von Krankenkassen durchgeführt. Nicht nur bei diesem Berechnungstool ergaben sich Differenzen bei der Ermittlung der sog. KVdR, sondern auch bei fast allen Rechnern der Krankenkassen."]
[]
["Geringfügige Differenzen können daher nicht ausgeschlossen werden! ",{"$nulls":7},"E"]
[]
["Bei offensichtlichen Fehlern bitte ich jedoch um Kontaktaufnahme!"]
[]
["Kontakt Klaus Rohsmöller aufnehmen …",{"$nulls":3},"Tel:","05971-939379"]
[]
["Informationen zur KVdR"]
[]
["Rundschreiben hier ...."]
[]
["Erläuterungen zur Berechnung:"]
[]
["Die gelben Felder in Eingabefelder"]
[]
["Hier sind ggf. Daten einzutragen!"]
[]
[]
["Achtung Besonderheiten:"]
[]
["Diese Berechnungshilfe gilt nicht für Spätaussiedler (§ 4 BVFG). Die KVdR-Voraussetzungen sind für diesen Personenkreis nach den besonderen Vorschriften des § 5 Abs. 1 Nr. 12 SGB V zu prüfen. Sofern die Rentenantragstellung innerhalb von 10 Jahren nach dem Zuzug erfolgt, sind die KVdR Voraussetzungen fiktiv erfüllt. Erfolgt die Rentenantragstellung nach Ablauf der 10 Jahresfrist, so werden nur Versicherungszeiten in Deutschland geprüft (vgl. GR 24.10.2019 Pkt. A I 3.3.1 Seite 24) "]
[]
["Ob der Rentenatragsteller zum Personenkreis der Spätaussiedler (§ 4 BVFG) zählt, kann aus dem Versicherungsverlauf der DRV entnommen werden. Versicherungszeiten sind mit dem Merkmal \"FRG\" gekennzeichnet."]
["Eingabemöglichkeiten"]
[]
["Bitte tragen Sie den Namen, Vorname, das Geburtsdatum ein und wählen Sie den Familienstand aus. Die Berechnungshilfe errechnet das Alter nach dem Datum der Rentenantragstellung."]
[]
["Anzahl der Kinder"]
[]
["Im Rahmen des Heilmittel- und Hilfsmittelversorungsgsetzes werden zum 01.08.2017 die Zugangsvoraussetzungen zur KVdR verbessert. Künftig werden fiktiv für jedes Kind (leibliches Kind, Adoptivkind, Stiefkind oder Pflegekind) pauschal 3 Jahre für jedes Elternteil bei der KVdR berücksichtigt."]
["Es muss nur die Anzahl der Kinder eingetragen werden."]
["Eine mehrfache Anrechnung der dreijährigen Kindererziehungszeit bei verschiedenen Elternteilen (leibliche Eltern, Adoptiveltern, Stief- und Pflegekindern) ist möglich. Das gilt auch selbst dann, wenn die rechtliche Eltern-Kind-Verbindung erst nach Vollendung des 18. Lebensjahres eingegangen wird. Enkelkinder können dagegen nicht berücksichtigt werden."]
["Die pauschale Anrechnung der 3 Jahre erfolg unabhängig davon, ob das Kind in der 1. oder 2. Hälfte des Erwerbslebens geboren ist oder vor Vollendung des 3. Lebensjahres verstirbt"]
["Da eine Übergangsregelung- bzw. Stichtagsregelung nicht vorgesehen ist, können auch Personen, die ihren Rentenantrag vor dem 01.08.2017 gestellt haben und bisher die erforderliche Vorversicherungszeit nicht erfüllt haben, durch die Anrechnung den Zugang zur KVdR erhalten. Dies gilt auch für bisher privat Versicherte oder für Betreuungsfälle nach § 264 SGB V."]
[]
["Tag der Rentenantragstellung"]
[]
["Die KVdR-Voraussetzungen sind nur bei den DRV-Renten (SGB VI) zu prüfen. Unfallrenten der Berufsgenossenschaften oder Renten von bestimmten Versorgungseinrichtungen zählen hierzu nicht."]
[]
["Grundsätzlich muss der Rentenantragsteller die sog. KVdR Voraussetzungen erfüllen. Bei Hinterbliebenrenten (Witwen- und Waiserenten) ist hilfsweise (Antragsteller erfüllt sellber die KVdR-Voraussetzungen nicht) eine zweite Berechnung zur KVdR vorzunehmen. Sofern der Verstorbene die Voraussetzungen erfüllt hätte, unterliegt der Hinterbliebene auch der KVdR."]
[]
["Sofern die KVdR-Voraussetzungen vom Rentenantragsteller zu prüfen sind, ist hier der Tag der Rentenantragstellung einzutragen. "]
[]
["Bei der Alternativberechnung über den Verstorbenen ist der Todestag einzutragen (vgl. GR 30.12.2008 Seite 24 / Beispiel)"]
[]
["Fortzahlungsanträge / Umwandlungen"]
["Achtung:"]
["Erwerbsminderungsrenten werden teilweise befristet bewilligt. Der Fortzahlungsantrag gilt als neuer Rentenantrag; d.h., dass eine neue KVdR-Berechnung vorzunehmen ist (vgl. GR 24.10.2019 Pkt. A I 3.7.2 und 3.7.3 Seite 43). Der Übergang einer Erwerbsminderungsrente zur Altersrente gilt auch als neuer Rentenantrag. Es ergibt sich eine ganz andere Rahmenfrist. Die Praxis des Autors hat gezeigt, dass die Kassen in der Regel in diesen Fälle keine neue KVdR-Berechnung durchführen."]
[]
["Tag erstmalige Aufnahme einer Erwerbstätigkeit"]
[]
["Der Tag der erstmaligen Aufnahme einer Erwerbstätigkeit ist hier einzutragen."]
[]
["Als Erwerbstätigkeit gilt jede auf den Erwerb gerichtete oder zur Berufsausbildung ausgeübte Beschäftigung. Eine selbständige Tätigkeit bspw. auch im Ausland zählt auch. Es kommt nicht darauf an, dass die Tätigkeit versicherungspfichtig in der GKV ist. Ein Mini-Job oder die Aufnahme eines Studiums zählt nicht dazu."]
[]
["Achtung Besonderheiten:"]
[]
["Wurde eine Erwerbstätigkeit nicht aufgenommen, so gilt hier (vgl. GR 24.10.2019Pkt. A I 3.3.1 Seite 24):"]
[]
[null,"- Tag der Eheschließung bzw. Eintragung Lebenspartnerschaft"]
[null,"- Tag der Geburt bei minderjährigen Waisen"]
[null,"- Vollendung des 18. Lebensjahres (keine Ehe bzw. Lebenspartnerschaft)"]
[]
["Es hat hier in der Praxis schon Fälle gegeben, in denen die Kassen die KVdR abgelehnt haben, weil die Fristenberechnung nach § 5 Abs. 1 Nr. 11 SGB V vermeintlich nicht vorgenommen werden konnte, da der 1. Tag im Erwerbsleben nicht bestimmbar war. Ein Verweis auf das GR führte dann allerdings zur KVdR-Pflicht."]
[]
["Ermittlung Rahmenfrist und erforderliche Vorversicherungszeit (9/10)"]
[]
["Bei Rentenantragstellungen tritt die KVdR nur ein, wenn in der Zeit von der erstmaligen Aufnahme einer Erwerbstätigkeit bis zur Rentenantragstellung (Rahmenfrist) mindestens neun Zehntel der zweiten Hälfte diese Zeitraumes eine Mitgliedschaft oder eine Familienversicherung bei einer Krankenkasse bestanden hat. Den Mitgliedszeiten stehen unter bestimmten Voraussetzungen bis zum 31.12.1998 die Zeiten einer Ehe mit einem Mitglied der GKV gleich (vgl. § 5 Abs. 2 Satz 1 SGB V). Ab dem 01.08.2017 werden fiktiv Kindererziehungszeiten in Höhe von 3 Jahre pro Kind berücksichtigt. Weitere Anmerkungen siehe oben."]
[]
["Zur Berechnung der sog. Rahmenfrist muss eine sog. 1. und. 2. Hälfte errechnet werden. Die 2. Hälfte ist entscheidend für die Zugangsberechtigung zur KVdR."]
[]
["Die Berechnungshilfe errechnet automatisch die Rahmenfrist der 2. Hälfte und errechnet hier die gesamte Frist. Diese gesamte Frist muss allerdings nur mit 9/10 belegt (Versicherungszeiten) werden. Auch diese errechnet die Berechnungshilfe automatisch."]
[]
["Nach dem GR vom 24.10.2019  (Pkt. A I 3.3.2 Seite 26) ist die 2. Hälfte der Rahmenfrist in entsprechender Anwendung von § 26 SGB X i. V. m. § 191 BGB in Jahre, Monate und Tage umzurechnen, hierbei sollen volle Kalendermonate zu 30 und das Kalenderjahr zu 365 Tagen gerechnet werden."]
[]
["Achtung:"]
[]
["Diese Vorabe vom Spitzenverband Bund der Krankenkassen ist für den Autor derzeit nicht nachvollziehbar (Umrechnung auf Jahre, Monate und Tage)."]
[]
["Denn eine Umrechnung zeigt in der Praxis, dass dort bei den jeweiligen eigenen Programmen der Kassen teilweise erhebliche Differenzen entstehen."]
[]
["Der Wortlaut von § 191 BGB besagt lediglich, dass eine Umrechnung nach Jahre, Monate und Tage nur dann zu erfolgen hat, wenn dieser Zeitraum gesetzlich nach Jahren oder Monaten bestimmt ist."]
[]
["Die Bestimmungen des § 5 Abs. 1 Nr. 11 SGB V schreiben dies ausdrücklich nicht vor, denn es wird nur eine 9/10 Versicherung in der 2. Hälfte gefordert."]
[]
["Eine tageweise Berechnung könnte daher durchaus angezeigt sein und keine Umrechnung."]
[]
["Ein Vergleich zur Beitrittsberechtigung im Bereich der freiw. Kv. (§ 9 SGB V) sollte dies auch verdeutlichen. Hier fordert der Gesetzgeber innerhalb einer bestimmten Frist eine Vorversicherungszeit von 12 oder 24 Monaten."]
[]
["Da es jedoch an einer spezialgesetzlichen Bestimmung zur Umrechnung (Jahre bzw. Monate) im Bereich der KVdR fehlt, ist die Umrechnung auch nicht zwingend vorzunehmen."]
[]
["Allerdings werden sich alle Kassen in Deutschland an die Vorgaben des GR vom 24.10.2019 halten."]
[]
["Der Autor hat die Berechnungshilfe auch probeweise mit einer taggenauen Berechnung programmiert. Sollten die Differenzen im Einzelfall dazu führen, dass die KVdR Voraussetzungen sehr wohl vorliegen, erfolgt ein Warnhinweis. Es obliegt dann dem Versicherten hier ggf. den Klageweg zu bestreiten.  In der Praxis werden dies nur sehr wenige Grenzfälle sein."]
[]
["Ermittlung der tatsächlichen Versicherungszeiten"]
[]
["Bei der Erfüllung der KVdR Voraussetzungen zählen alle Versicherungszeiten, somit eine Pfichtversicherung (§ 5 SGB V), eine freiw. Kv. (§ 9 SGB V) und eine Familienversicherung (§ 10 SGB V). Unter bestimmten Voraussetzungen zählen bis zum 31.12.1988 Zeiten einer Ehe mit einem Mitglied der GKV gleich. Diese Fälle dürften allerdings in der Praxis noch sehr selten vorkommen."]
[]
["Es ist die jeweilige Krankenkasse einzutragen und Art der Versicherung (§ 5 Pflichtversicherung / § 9 freiw. Kv. / § 10 Familienversicherung) über das Fenster auszuwählen."]
[]
["Achtung:"]
[]
["Ohne eine Auswahl erfolgt keine Berechnung der Versicherungszeit."]
[]
["Zeiten einer priv. Kv., Nichtversicherungszeiten, JVA und Auslandsaufenthalte werden nicht berechnet. Sie können ggf. eingetragen werden; sie sind jedoch nicht zwingend erforderlich."]
[]
["Achtung:"]
[]
["Bei Auslandsauenthalten innerhalb der EU/EWG bzw. in Abkommenstaaten ist jedoch zu beachten, dass diese sehr wohl als Vorversicherungszeiten bei der KVdR berücksichtigt werden, wenn es eine gesetzliche Versicherung war."]
[]
["Es werden nur Zeiten innerhalb der Rahmenfrist berechnet, aber es können auch Zeiten außerhalb der Rahmenfrist eingetragen werden, die automatisch nicht berücksichtigt werden. Es erfolgt ein Hinweis, ab wann bzw. bis wann eine Berücksichtigung erfolgt."]
[]
["Die Berechnungshilfe addiert sämtliche Vorversicherungszeiten in der 2. Hälfte und rechnet zum Schluss diese Vorversicherungszeiten wieder nach Jahren, Monaten und Tagen um."]
[]
["Abschließend prüft die Berechnungshilfe, ob die erforderlichen Vorversicherungszeiten erfüllt sind. Das Ergebnis wird ausgewiesen. Sofern die Vorversicherungszeiten nicht erfüllt sind, werden die noch fehlenden Jahre, Monate und Tage ausgewiesen."]
[]
["Achtung:"]
[]
["Sofern aufgrund der probeweisen taggenauen Berechnung im Einzelfall abweichend die KVdR Voraussetzungen erfüllt sind, erfolgt ein Warnhinweis. Es obliegt dann dem Versicherten hier ggf. den Klageweg zu bestreiten (vgl. Ausführungen zu Ermittlung Rahmenfrist und erforderliche Vorversicherungszeiten 9/10)."]
[]
["Abschlusswort:"]
[]
["Auch wenn es nicht Aufgabe der SGB XII-Träger ist, die Entscheidungen der Kassen im Bereich der KVdR zu prüfen, so hat die Praxis des Autors gezeigt, dass dennoch bei einer kritischen Prüfung im Einzelfall die KVdR Voraussetzungen nachgeweisen werden konnten."]
[]
["Gerade im Bereich der Familienversicherung gab es zahlreiche Möglichkeiten durch sog. rückwirkende Eintragungen in die Familienversicherung vermeintliche Lücken zu schließen."]
[]
["Viel Erfolg"]

{"sheet":"Berechnung","index":1,"n_rows":54,"n_cols":31,"rows_kept":54,"merged":[[0,0,0,10],[1,6,1,8],[1,9,1,10],[2,0,2,3],[2,9,2,10],[3,9,3,10],[5,6,5,10],[6,0,6,4],[7,6,7,10],[8,0,9,4],[10,0,11,4],[10,6,11,10],[13,0,13,10],[15,9,15,10],[17,29,18,30],[25,0,25,10],[27,0,27,10],[28,0,28,10],[28,21,28,23],[28,29,28,30],[29,0,29,1],[29,2,29,4],[29,6,29,7],[30,0,30,1],[30,2,30,4],[30,6,30,7],[31,0,31,1],[31,2,31,4],[31,6,31,7],[32,0,32,1],[32,2,32,4],[32,6,32,7],[33,0,33,1],[33,2,33,4],[33,6,33,7],[34,0,34,1],[34,2,34,4],[34,6,34,7],[35,0,35,1],[35,2,35,4],[35,6,35,7],[36,0,36,1],[36,2,36,4],[36,6,36,7],[37,0,37,1],[37,2,37,4],[37,6,37,7],[38,0,38,1],[38,2,38,4],[38,6,38,7],[39,0,39,1],[39,2,39,4],[39,6,39,7],[40,0,40,1],[40,2,40,4],[40,6,40,7],[41,0,41,1],[41,2,41,4],[41,6,41,7],[42,0,42,1],[42,2,42,4],[42,6,42,7],[43,0,43,1],[43,2,43,4],[43,6,43,7],[44,0,44,1],[44,2,44,4],[44,6,44,7],[45,0,45,1],[45,2,45,4],[45,6,45,7],[46,0,46,3],[46,6,46,7],[50,0,50,10],[50,29,50,30],[51,0,51,7]]}
["Berechnung Vorversicherungzeiten KVdR",{"$nulls":13},1,"Familienstand"]
[{"$nulls":5},{"$f":"IF(F3>0,DATEDIF(F3,F8,\"y\")&\" Jahre alt\",\"\")","v":""},{"$f":"IF(AND(F8>0,O1=1),\"auswählen!\",\"\")","v":""},null,null,{"$f":"IF(AND(O1>2,ISBLANK(J3)=TRUE),\"Datum!!\",\"\")","v":""},{"$nulls":4},"Hilfszelle Ermittlung Alter"]
[{"$nulls":14},"Heute"]
["Name, Vorname",{"$nulls":4},"Geb.-Datum",{"$nulls":3},{"$f":"IF(OR(O1=3,O1=4),\"Datum\",\"\")","v":""},{"$nulls":4},{"$f":"TODAY()","v":"2021-04-16"},null,null,"Gesamt Tag","1/2 davon"]
[]
["Anzahl von Kindern:",{"$nulls":4},0,"Hinweis: Leibliches-, Adpotiv-, Stief-, und Pflegekind (für jedes Elternteil)"]
["(Hinweis : ab 01.08.2017 / Gesetzesänderung)"]
["Tag der Rentenantragstellung:",{"$nulls":5},"Hinweis: Bei Hinterbliebenrenten und VVZ über den Verstorbenen das Sterbedatum!",{"$nulls":7},"Hilfszelle Ende + 1 (Ende)",null,{"$f":"F8+1","v":"1900-01-01"},{"$f":"DATEDIF(Anfang,ende,\"d\")","v":1},{"$f":"ROUNDUP(R8/2,0)","v":1},"gg. abgerundet"]
["Achtung: Bei Fortzahlungsanträgen (befristete Rente) oder Übergang zur Altersrente neue Berechnung vornehmen!!!",{"$nulls":4},"Datum"]
[]
["Tag erstmalige Aufnahme einer Erwerbstätigkeit:",{"$nulls":5},"Hinweis: Jede Tätigkeit, die erwerbsmäßig ausgerichtet ist. Tätigkeiten im Ausland zählen dazu, ebenfalls selbständige Tätigkeit. Mini-Job oder Studium zählt nicht!",{"$nulls":8},"Anfang",{"$f":"Anfang","v":"00:00:00"},null,{"$f":"Anfang+S8","v":"1900-01-01"},{"$f":"ende","v":"1900-01-01"}]
[{"$nulls":5},"Datum",{"$nulls":12},"Beg. 2. Hälfte","Ende 2. Hälfte + 1"]
[]
["Erforderliche Vorversicherungszeit nach  § 5 Abs. 1 Nr. 11 SGB V"]
[]
["Die zweite Hälfte der Rahmenfrist beginnt am:",{"$nulls":4},{"$f":"S11","v":"1900-01-01"},null,null,"und endet am:",{"$f":"F8","v":"00:00:00"}]
[]
[{"$nulls":6},"Jahre","Monate","Tage",{"$nulls":20},"Probeberechnung nach Tagen"]
[{"$nulls":5},"Die zweite Hälfte der Rahmenfrist ergibt:",{"$f":"DATEDIF(beginn2,ende2,\"y\")","v":0},{"$f":"DATEDIF(beginn2,ende2,\"ym\")","v":0},{"$f":"ende2-MIN(DATE(YEAR(ende2),MONTH(ende2)-(DAY(ende2)<DAY(beginn2))+{1;0},DAY(beginn2)*{0;1}))","v":0}]
[{"$nulls":5},"davon mindestens 9/10 1. Schritt",{"$f":"VLOOKUP(G19,Jahre,2)","v":0},{"$f":"VLOOKUP(G19,Jahre,3)","v":0},{"$f":"VLOOKUP(G19,Jahre,4)","v":0}]
[{"$nulls":5},"2. Schritt",null,{"$f":"VLOOKUP(H19,Monat,2)","v":0},{"$f":"VLOOKUP(H19,Monat,3)","v":0}]
[{"$nulls":5},"3. Schritt",null,null,{"$f":"VLOOKUP(I19,Tag,2)","v":0}]
[{"$nulls":5},"Gesamt",{"$f":"SUM(G20:G22)","v":0},{"$f":"SUM(H20:H22)","v":0},{"$f":"SUM(I20:I22)","v":0}]
[{"$nulls":5},"davon mindestens 9/10:",{"$f":"ROUNDDOWN((G23*360+H23*30+I23)/360,0)","v":0},{"$f":"ROUNDDOWN(((G23*360+H23*30+I23)-(G24*360))/30,0)","v":0},{"$f":"(G23*360+H23*30+I23)-G24*360-H24*30","v":0},{"$nulls":20},{"$f":"DATEDIF(beginn2,ende2,\"D\")","v":0},"Tage (gesamt)"]
[]
["Ermittlung Vorversicherungszeiten in der GKV",{"$nulls":28},{"$f":"ROUNDUP(AD24*0.9,0)","v":0},"davon 9/10"]
[]
["Hinweis: Anrechenbar sind Zeiten einer Pflicht- freiwilligen Versicherung sowie Zeiten einer Familienversicherung und Ehegattenzeiten in der GKV bis 31.12.1988.",{"$nulls":14},"Beginn 2. Hälfte",{"$f":"beginn2","v":"1900-01-01"},"Ende 2. Hälfte",{"$f":"F8","v":"00:00:00"}]
[{"$f":"IF(F8>0,\"Es werden nur Versicherungszeiten in der Zeit vom \"&TEXT(F16,\"TT.MM.JJJJ\")&\" bis \"&TEXT(J16,\"TT.MM.JJJJ\")&\" gezählt!\",\"\")","v":""},{"$nulls":11},"Skala nachgewiesene VVZ",{"$nulls":8},"Wandlung Ergebnis",null,null,"Wandlung Hinweise",null,null,"Doppelte","Wandlung","nachgewiesene Tage"]
["Krankenkasse",null,"Art der Versicherung",null,null,"Von","Bis",null,"Jahre","Monate","Tage",null,"100 = KVdR erfüllt",null,"Ausgabe","Von","Bis","zzgl. 1 Tag","Jahre","Monate","Tage","Jahre","Monate","Tage","Jahre","Monate","Tage","Zeiten","Gesamt"]
[{"$nulls":8},{"$f":"IF(P31=\"\",\"\",V31)","v":""},{"$f":"IF(P31=\"\",\"\",W31)","v":""},{"$f":"IF(P31=\"\",\"\",X31)","v":""},{"$f":"IF(AND(F31>0,ISBLANK(G31)=TRUE),\"Endedatum fehlt!\",IF(AND(F31>0,O31=1),\"Versicherungsart auswählen!\",IF(F31>$S$28,\"Datum außerhalb der Rahmenfrist!\",IF(AND(F31>0,O31=5),\"keine Vorversicherungszeit da PKV!\",IF(AND(AC31>0,F31<P31),\"Berechnung erst ab \"&TEXT(P31,\"TT.MM.JJJJ\")&\" (Rahmenfrist)\",IF(AND(AC31>0,G31>Q31),\"Berechnung nur bis \"&TEXT($J$16,\"TT.MM.JJJJ\")&\" (Rahmenfrist)\",IF(AND(F31>0,O31>5),\"keine Vorversicherungszeit da nicht versichert!\",\"\")))))))","v":""},null,null,1,{"$f":"IF(ISBLANK(F31)=TRUE,\"\",IF(G31<$Q$28,\"\",IF(AND(F31>0,F31<$Q$28),$Q$28,F31)))","v":""},{"$f":"IF(G31<$Q$28,\"\",IF(AND(G31>$S$28,F31>$Q$28),$S$28,IF(AND(G31>=$S$28,G31>$Q$28),$S$28,G31)))","v":""},{"$f":"IF(P31=\"\",\"\",IF(AND(Q31>=P31),Q31+1,\"\"))","v":""},{"$f":"IF(R31=\"\",\"\",DATEDIF(P31,R31,\"y\"))","v":""},{"$f":"IF(R31=\"\",\"\",DATEDIF(P31,R31,\"Ym\"))","v":""},{"$f":"IF(R31=\"\",\"\",R31-MIN(DATE(YEAR(R31),MONTH(R31)-(DAY(R31)<DAY(P31))+{1;0},DAY(P31)*{0;1})))","v":""},{"$f":"IF(OR(O31=1,O31>4),0,S31)","v":0},{"$f":"IF(OR(O31=1,O31>4),0,T31)","v":0},{"$f":"IF(OR(O31=1,O31>4),0,U31)","v":0},{"$f":"IF(V31=0,\"\",V31)","v":""},{"$f":"IF(W31=0,\"\",W31)","v":""},"",{"$f":"IF(AND(F31>0,G31>0,AC31>0),SUMPRODUCT(($F$31:$F$46<=G31)*($G$31:$G$46>=F31))-1,0)","v":0},{"$f":"SUM(V31:X31)","v":0},{"$f":"IF(R31=\"\",0,IF(AND(O31>1,O31<5),DATEDIF(P31,R31,\"d\"),0))","v":0}]
[{"$nulls":8},{"$f":"IF(P32=\"\",\"\",V32)","v":""},{"$f":"IF(P32=\"\",\"\",W32)","v":""},{"$f":"IF(P32=\"\",\"\",X32)","v":""},{"$f":"IF(AND(F32>0,ISBLANK(G32)=TRUE),\"Endedatum fehlt!\",IF(AND(F32>0,O32=1),\"Versicherungsart auswählen!\",IF(F32>$S$28,\"Datum außerhalb der Rahmenfrist!\",IF(AND(F32>0,O32=5),\"keine Vorversicherungszeit da PKV!\",IF(AND(AC32>0,F32<P32),\"Berechnung erst ab \"&TEXT(P32,\"TT.MM.JJJJ\")&\" (Rahmenfrist)\",IF(AND(AC32>0,G32>Q32),\"Berechnung nur bis \"&TEXT($J$16,\"TT.MM.JJJJ\")&\" (Rahmenfrist)\",IF(AND(F32>0,O32>5),\"keine Vorversicherungszeit da nicht versichert!\",\"\")))))))","v":""},null,null,1,{"$f":"IF(ISBLANK(F32)=TRUE,\"\",IF(G32<$Q$28,\"\",IF(AND(F32>0,F32<$Q$28),$Q$28,F32)))","v":""},{"$f":"IF(G32<$Q$28,\"\",IF(AND(G32>$S$28,F32>$Q$28),$S$28,IF(AND(G32>=$S$28,G32>$Q$28),$S$28,G32)))","v":""},{"$f":"IF(P32=\"\",\"\",IF(AND(Q32>=P32),Q32+1,\"\"))","v":""},{"$f":"IF(R32=\"\",\"\",DATEDIF(P32,R32,\"y\"))","v":""},{"$f":"IF(R32=\"\",\"\",DATEDIF(P32,R32,\"Ym\"))","v":""},{"$f":"IF(R32=\"\",\"\",R32-MIN(DATE(YEAR(R32),MONTH(R32)-(DAY(R32)<DAY(P32))+{1;0},DAY(P32)*{0;1})))","v":""},{"$f":"IF(OR(O32=1,O32>4),0,S32)","v":0},{"$f":"IF(OR(O32=1,O32>4),0,T32)","v":0},{"$f":"IF(OR(O32=1,O32>4),0,U32)","v":0},"","","",0,{"$f":"SUM(V32:X32)","v":0},{"$f":"IF(R32=\"\",0,IF(AND(O32>1,O32<5),DATEDIF(P32,R32,\"d\"),0))","v":0}]
[null,null,"1994-12-16",{"$nulls":5},"","","","",null,null,1,{"$f":"IF(ISBLANK(F33)=TRUE,\"\",IF(G33<$Q$28,\"\",IF(AND(F33>0,F33<$Q$28),$Q$28,F33)))","v":""},{"$f":"IF(G33<$Q$28,\"\",IF(AND(G33>$S$28,F33>$Q$28),$S$28,IF(AND(G33>=$S$28,G33>$Q$28),$S$28,G33)))","v":""},{"$f":"IF(P33=\"\",\"\",IF(AND(Q33>=P33),Q33+1,\"\"))","v":""},{"$f":"IF(R33=\"\",\"\",DATEDIF(P33,R33,\"y\"))","v":""},"",{"$f":"IF(R33=\"\",\"\",R33-MIN(DATE(YEAR(R33),MONTH(R33)-(DAY(R33)<DAY(P33))+{1;0},DAY(P33)*{0;1})))","v":""},0,0,0,"","","",0,0,0]
[{"$nulls":8},"","","","",null,null,1,{"$f":"IF(ISBLANK(F34)=TRUE,\"\",IF(G34<$Q$28,\"\",IF(AND(F34>0,F34<$Q$28),$Q$28,F34)))","v":""},{"$f":"IF(G34<$Q$28,\"\",IF(AND(G34>$S$28,F34>$Q$28),$S$28,IF(AND(G34>=$S$28,G34>$Q$28),$S$28,G34)))","v":""},"",{"$f":"IF(R34=\"\",\"\",DATEDIF(P34,R34,\"y\"))","v":""},"",{"$f":"IF(R34=\"\",\"\",R34-MIN(DATE(YEAR(R34),MONTH(R34)-(DAY(R34)<DAY(P34))+{1;0},DAY(P34)*{0;1})))","v":""},0,0,0,{"$f":"IF(V34=0,\"\",V34)","v":""},{"$f":"IF(W34=0,\"\",W34)","v":""},{"$f":"IF(X34=0,\"\",X34)","v":""},0,0,0]
[null,null,"2011-06-11",{"$nulls":5},"","","","",null,null,1,"","","",{"$f":"IF(R35=\"\",\"\",DATEDIF(P35,R35,\"y\"))","v":""},"",{"$f":"IF(R35=\"\",\"\",R35-MIN(DATE(YEAR(R35),MONTH(R35)-(DAY(R35)<DAY(P35))+{1;0},DAY(P35)*{0;1})))","v":""},0,0,0,"","","",0,0,0]
[{"$nulls":8},"","","","",null,null,1,"","","","","",{"$f":"IF(R36=\"\",\"\",R36-MIN(DATE(YEAR(R36),MONTH(R36)-(DAY(R36)<DAY(P36))+{1;0},DAY(P36)*{0;1})))","v":""},0,0,0,"","","",0,0,0]
[{"$nulls":8},"","","","",null,null,1,"","","","","",{"$f":"IF(R37=\"\",\"\",R37-MIN(DATE(YEAR(R37),MONTH(R37)-(DAY(R37)<DAY(P37))+{1;0},DAY(P37)*{0;1})))","v":""},0,0,0,"","","",0,0,0]
[{"$nulls":8},"","","","",null,null,1,"","","","","",{"$f":"IF(R38=\"\",\"\",R38-MIN(DATE(YEAR(R38),MONTH(R38)-(DAY(R38)<DAY(P38))+{1;0},DAY(P38)*{0;1})))","v":""},0,0,0,"","","",0,0,0]
[{"$nulls":8},"","","","",null,null,1,"","","","","",{"$f":"IF(R39=\"\",\"\",R39-MIN(DATE(YEAR(R39),MONTH(R39)-(DAY(R39)<DAY(P39))+{1;0},DAY(P39)*{0;1})))","v":""},0,0,0,"","","",0,0,0]
[{"$nulls":8},"","","","",null,null,1,"","","","","",{"$f":"IF(R40=\"\",\"\",R40-MIN(DATE(YEAR(R40),MONTH(R40)-(DAY(R40)<DAY(P40))+{1;0},DAY(P40)*{0;1})))","v":""},0,0,0,"","","",0,0,0]
[{"$nulls":8},"","","","",null,null,1,"","","","","",{"$f":"IF(R41=\"\",\"\",R41-MIN(DATE(YEAR(R41),MONTH(R41)-(DAY(R41)<DAY(P41))+{1;0},DAY(P41)*{0;1})))","v":""},0,0,0,"","","",0,0,0]
[{"$nulls":8},"","","","",null,null,1,"","","","","",{"$f":"IF(R42=\"\",\"\",R42-MIN(DATE(YEAR(R42),MONTH(R42)-(DAY(R42)<DAY(P42))+{1;0},DAY(P42)*{0;1})))","v":""},0,0,0,"","","",0,0,0]
[{"$nulls":8},"","","","",null,null,1,"","","","","",{"$f":"IF(R43=\"\",\"\",R43-MIN(DATE(YEAR(R43),MONTH(R43)-(DAY(R43)<DAY(P43))+{1;0},DAY(P43)*{0;1})))","v":""},0,0,0,"","","",0,0,0]
[{"$nulls":8},"","","","",null,null,1,"","","","","",{"$f":"IF(R44=\"\",\"\",R44-MIN(DATE(YEAR(R44),MONTH(R44)-(DAY(R44)<DAY(P44))+{1;0},DAY(P44)*{0;1})))","v":""},0,0,0,"","","",0,0,0]
[{"$nulls":8},"","","","",null,null,1,"","","","","",{"$f":"IF(R45=\"\",\"\",R45-MIN(DATE(YEAR(R45),MONTH(R45)-(DAY(R45)<DAY(P45))+{1;0},DAY(P45)*{0;1})))","v":""},0,0,0,"","","",0,0,0]
[{"$nulls":8},{"$f":"IF(P46=\"\",\"\",V46)","v":""},"","","",null,null,1,"","","","","",{"$f":"IF(R46=\"\",\"\",R46-MIN(DATE(YEAR(R46),MONTH(R46)-(DAY(R46)<DAY(P46))+{1;0},DAY(P46)*{0;1})))","v":""},0,0,0,"","","",0,0,0]
[{"$f":"IF(F6>0,\"fiktive Hinzurechnung von Kindern:\",\"\")","v":""},{"$nulls":3},{"$f":"IF(F6>0,F6,\"\")","v":""},{"$f":"IF(F6=0,\"\",IF(F6=1,\"Kind á\",\"Kinder á\"))","v":""},{"$f":"IF(F6>0,\"3 Jahre\",\"\")","v":""},null,{"$f":"IF(V47=\"\",\"\",V47)","v":0},{"$nulls":5},1,{"$nulls":6},{"$f":"IF(E47=\"\",0,IF(E47>0,E47*3,0))","v":0},null,null,"",{"$nulls":4},{"$f":"IF(Y47=\"\",0,Y47*365)","v":0}]
[{"$nulls":7},"Gesamt",{"$f":"V48","v":0},{"$f":"W48","v":0},{"$f":"X48","v":0},{"$nulls":9},"Gesamt",{"$f":"SUM(V31:V47)","v":0},{"$f":"SUM(W31:W46)","v":0},{"$f":"SUM(X31:X46)","v":0},{"$nulls":5},{"$f":"IF(R48=\"\",0,IF(AND(O48>1,O48<5),DATEDIF(P48,R48,\"d\"),0))","v":0}]
[{"$nulls":7},"Gesamte Vorversicherungszeit:",{"$f":"ROUNDDOWN((I48*360+J48*30+K48)/360,0)","v":0},{"$f":"ROUNDDOWN(((I48*360+J48*30+K48)-(I49*360))/30,0)","v":0},{"$f":"(I48*360+J48*30+K48)-I49*360-J49*30","v":0},null,{"$f":"O52","v":{"v":0,"d":"0.00"}},null,{"$f":"I49*360+J49*30+K49","v":0},{"$nulls":11},"Summe",{"$f":"SUM(AB31:AB48)","v":0},null,{"$f":"SUM(AD31:AD48)","v":0},"Gesamt"]
[{"$nulls":7},"erforderliche Vorversicherungszeit:",{"$f":"G24","v":0},{"$f":"H24","v":0},{"$f":"I24","v":0},{"$nulls":3},{"$f":"I50*360+J50*30+K50","v":0},{"$nulls":14},{"$f":"AD26","v":0},"erforderlich"]
[{"$f":"IF(AND(AD51=\"KVdR erfüllt\",O51<0),\"Achtung, Achtung!! Bei tageweiser Berechnung ist die KVdR erfüllt! Vgl. Erläuterungen.\",\"\")","v":""},{"$nulls":13},{"$f":"O49-O50","v":0},"Differenz",{"$nulls":13},{"$f":"IF(AD49<AD50,\"KVdR nicht erfüllt\",\"KVdR erfüllt\")","v":"KVdR erfüllt"}]
[{"$f":"IF(AB49>0,\"Achtung!! Es wurden doppelte Zeiträume eingegeben (rot)!!\",\"\")","v":""},{"$nulls":7},{"$f":"IF($H$53=\"Die Vorversicherungszeit ist nicht erfüllt. Es fehlen:\",\"Jahre\",\"\")","v":""},{"$f":"IF($H$53=\"Die Vorversicherungszeit ist nicht erfüllt. Es fehlen:\",\"Monate\",\"\")","v":""},{"$f":"IF($H$53=\"Die Vorversicherungszeit ist nicht erfüllt. Es fehlen:\",\"Tage\",\"\")","v":""},{"$nulls":3},{"$f":"IF(F8>0,O49*100/O50,0)","v":{"v":0,"d":"0.00"}},"Prozent"]
[{"$nulls":7},{"$f":"IF(O51<0,\"Die Vorversicherungszeit ist nicht erfüllt. Es fehlen:\",\"Die Vorversicherungszeit ist erfüllt\")","v":"Die Vorversicherungszeit ist erfüllt"},{"$f":"IF(O51<0,ROUNDDOWN(ABS(O51)/360,0),\"\")","v":""},{"$f":"IF(O51<0,ROUNDDOWN((ABS(O51)-I53*360)/30,0),\"\")","v":""},{"$f":"IF(O51<0,ABS(O51)-I53*360-J53*30,\"\")","v":""},{"$nulls":3},64,"= 100 Prozent",{"$nulls":13},{"$f":"IF(AD49<AD50,AD50-AD49,\"\")","v":""},{"$f":"IF(AD49<AD50,\"fehlende Tage\",\"\")","v":""}]
["Hinweis: Berechnung ohne Gewährleistung! Die Entscheidung obliegt der Krankenkasse!"]

{"sheet":"Parameter","index":2,"n_rows":58,"n_cols":12,"rows_kept":58}
["Tabelle 9/10 Jahre",null,"Name= Jahr",null,null,"Tabelle 9/10 Monate",null,"Name=Monat",null,"Tabelle 9/10 Tage",null,"Name=Tag"]
[]
[" ","9/10 Jahr","9/10 Monate","9/10 Tage",null,"Monate","9/10 Monat","9/10 Tag",null,"Tag","9/10 Tag"]
[0,0,0,0,null,0,0,0,null,0,0]
[1,0,10,29,null,1,0,27,null,1,1]
[2,1,9,22,null,2,1,24,null,2,2]
[3,2,8,16,null,3,2,21,null,3,3]
[4,3,7,9,null,4,3,18,null,4,4]
[5,4,6,3,null,5,4,15,null,5,5]
[6,5,4,26,null,6,5,12,null,6,6]
[7,6,3,20,null,7,6,9,null,7,7]
[8,7,2,13,null,8,7,6,null,8,8]
[9,8,1,7,null,9,8,3,null,9,9]
[10,9,0,0,null,10,9,0,null,10,9]
[11,9,10,29,null,11,9,27,null,11,10]
[12,10,9,22,null,12,10,24,null,12,11]
[13,11,8,16,{"$nulls":5},13,12]
[14,12,7,9,{"$nulls":5},14,13]
[15,13,6,3,{"$nulls":5},15,14]
[16,14,4,26,{"$nulls":5},16,15]
[17,15,3,20,{"$nulls":5},17,16]
[18,16,2,13,{"$nulls":5},18,17]
[19,17,1,7,{"$nulls":5},19,18]
[20,18,0,0,{"$nulls":5},20,18]
[21,18,10,29,{"$nulls":5},21,19]
[22,19,9,22,{"$nulls":5},22,20]
[23,20,8,16,{"$nulls":5},23,21]
[24,21,7,9,{"$nulls":5},24,22]
[25,22,6,3,{"$nulls":5},25,23]
[26,23,4,26,{"$nulls":5},26,24]
[27,24,3,20,{"$nulls":5},27,25]
[28,25,2,13,{"$nulls":5},28,26]
[29,26,1,7,{"$nulls":5},29,27]
[30,27,0,0,{"$nulls":5},30,27]
[31,27,10,29]
[32,28,9,22]
[33,29,3,21]
[34,30,7,6]
[35,31,6,3]
[36,32,4,26]
[37,33,3,20]
[38,34,2,13]
[39,35,1,7]
[40,36,0,0]
[]
[]
[]
["Art der Versicherung",null,null,"Familienstand"]
[]
["… auswählen",null,null,"… Familienstand"]
["§ 5 Pflichtvers.",null,null,"ledig"]
["§ 9 freiw. Kv.",null,null,"verh. oder getrennt"]
["§ 10 Familienvers.",null,null,"geschieden"]
["privat versichert"]
["nicht versichert"]
["Sondersystem"]
["JVA"]
["Ausland"]